[Event "Late-Titled-Tuesday-Blitz-October-24-2023"]
[Site "Chess.com"]
[Date "2023.10.24"]
[Round "5"]
[White "GMJustin"]
[Black "Payyappat"]
[Result "0-1"]
[WhiteElo "2270"]
[BlackElo "2524"]
[TimeControl "180+1"]
[EndTime "14:55:37 PDT"]
[Termination "Payyappat won on time"]

1. d4 {[%clk 0:02:35.1]} 1... Nf6 {[%clk 0:02:58.2]} 2. c4 {[%clk 0:02:34.7]}
2... c5 {[%clk 0:02:57.5]} 3. d5 {[%clk 0:02:32.4]} 3... e6 {[%clk 0:02:58.1]}
4. Nc3 {[%clk 0:02:31.1]} 4... exd5 {[%clk 0:02:59]} 5. cxd5 {[%clk 0:02:31.1]}
5... d6 {[%clk 0:02:59.9]} 6. Nf3 {[%clk 0:02:30.8]} 6... g6 {[%clk 0:02:59.9]}
7. Nd2 {[%clk 0:02:30.9]} 7... Bg7 {[%clk 0:02:58.9]} 8. e4 {[%clk 0:02:30.8]}
8... O-O {[%clk 0:02:58.4]} 9. Be2 {[%clk 0:02:30.9]} 9... Nbd7 {[%clk
0:02:56.5]} 10. Nc4 {[%clk 0:02:22.6]} 10... Qe7 {[%clk 0:02:45.9]} 11. f3
{[%clk 0:02:11.3]} 11... a6 {[%clk 0:02:41.7]} 12. a4 {[%clk 0:02:09.4]} 12...
Ne5 {[%clk 0:02:36.2]} 13. Nb6 {[%clk 0:02:05.8]} 13... Rb8 {[%clk 0:02:34.7]}
14. O-O {[%clk 0:02:01.7]} 14... Nfd7 {[%clk 0:02:26.7]} 15. Nxc8 {[%clk
0:01:58.2]} 15... Rfxc8 {[%clk 0:02:25.2]} 16. f4 {[%clk 0:01:56.4]} 16... b5
{[%clk 0:02:19]} 17. axb5 {[%clk 0:01:51.5]} 17... axb5 {[%clk 0:02:17]} 18.
fxe5 {[%clk 0:01:50.5]} 18... Nxe5 {[%clk 0:02:11.1]} 19. Nxb5 {[%clk
0:01:46.1]} 19... c4 {[%clk 0:02:09.1]} 20. Ra7 {[%clk 0:01:37.6]} 20... Qh4
{[%clk 0:02:03.6]} 21. Nd4 {[%clk 0:01:29.4]} 21... Nd3 {[%clk 0:01:46.4]} 22.
Nf3 {[%clk 0:01:17.3]} 22... Qxe4 {[%clk 0:01:41.6]} 23. Bxd3 {[%clk 0:00:19.9]}
23... cxd3 {[%clk 0:01:36.1]} 24. Kh1 {[%clk 0:00:19.2]} 24... Rc2 {[%clk
0:01:31.3]} 25. Rxf7 {[%clk 0:00:12.1]} 25... Bxb2 {[%clk 0:01:16.5]} 26. Bxb2
{[%clk 0:00:08.2]} 26... Rbxb2 {[%clk 0:01:17.4]} 27. Rf8+ {[%clk 0:00:04.8]}
27... Kxf8 {[%clk 0:00:58.8]} 28. Ng5+ {[%clk 0:00:04.6]} 28... Qf5 {[%clk
0:00:56.4]} 29. Rxf5+ {[%clk 0:00:04.3]} 29... gxf5 {[%clk 0:00:57.3]} 30. h3
{[%clk 0:00:02.2]} 30... d2 {[%clk 0:00:47.3]} 31. Qh5 {[%clk 0:00:01.8]} 31...
Ke7 {[%clk 0:00:25]} 32. Qxh7+ {[%clk 0:00:01.4]} 32... Kd8 {[%clk 0:00:14]} 0-1

[Event "Late-Titled-Tuesday-Blitz-October-24-2023"]
[Site "Chess.com"]
[Date "2023.10.24"]
[Round "5"]
[White "louis198"]
[Black "Mikhal867"]
[Result "1-0"]
[WhiteElo "2653"]
[BlackElo "2433"]
[TimeControl "180+1"]
[EndTime "14:55:40 PDT"]
[Termination "louis198 won by checkmate"]

1. d4 {[%clk 0:03:00.5]} 1... Nf6 {[%clk 0:02:54.8]} 2. c4 {[%clk 0:02:59.9]}
2... g6 {[%clk 0:02:54.6]} 3. Nc3 {[%clk 0:02:59]} 3... Bg7 {[%clk 0:02:54.3]}
4. e4 {[%clk 0:02:59.2]} 4... O-O {[%clk 0:02:54.4]} 5. Nf3 {[%clk 0:02:59.2]}
5... d6 {[%clk 0:02:54.5]} 6. Be2 {[%clk 0:02:59]} 6... e5 {[%clk 0:02:55]} 7.
O-O {[%clk 0:02:58.6]} 7... Nc6 {[%clk 0:02:55.5]} 8. d5 {[%clk 0:02:58]} 8...
Ne7 {[%clk 0:02:55.9]} 9. b4 {[%clk 0:02:58]} 9... a5 {[%clk 0:02:55.3]} 10.
bxa5 {[%clk 0:02:57.9]} 10... Nh5 {[%clk 0:02:54.3]} 11. a4 {[%clk 0:02:57.7]}
11... Nf4 {[%clk 0:02:47.8]} 12. Re1 {[%clk 0:02:57.8]} 12... f5 {[%clk
0:02:44]} 13. Bf1 {[%clk 0:02:35.3]} 13... fxe4 {[%clk 0:02:27.4]} 14. Nxe4
{[%clk 0:02:35.2]} 14... Bg4 {[%clk 0:02:27.4]} 15. Ra3 {[%clk 0:02:28.4]} 15...
Nf5 {[%clk 0:02:22.2]} 16. Bxf4 {[%clk 0:02:23.9]} 16... exf4 {[%clk 0:02:20.3]}
17. h3 {[%clk 0:02:23.7]} 17... Bh5 {[%clk 0:02:16.7]} 18. Neg5 {[%clk
0:02:21.9]} 18... Bxf3 {[%clk 0:02:05.1]} 19. Nxf3 {[%clk 0:02:12.1]} 19... Rxa5
{[%clk 0:02:03.6]} 20. Bd3 {[%clk 0:02:05.4]} 20... Nh4 {[%clk 0:01:55.2]} 21.
Bc2 {[%clk 0:02:00.4]} 21... Rc5 {[%clk 0:01:47.6]} 22. Qe2 {[%clk 0:01:59]}
22... Nxf3+ {[%clk 0:01:45.3]} 23. Rxf3 {[%clk 0:01:58.3]} 23... Be5 {[%clk
0:01:43.5]} 24. Rb3 {[%clk 0:01:53.7]} 24... b6 {[%clk 0:01:43.1]} 25. Rb5
{[%clk 0:01:53.4]} 25... f3 {[%clk 0:01:41.2]} 26. gxf3 {[%clk 0:01:44.6]} 26...
Qg5+ {[%clk 0:01:40.3]} 27. Kf1 {[%clk 0:01:44.5]} 27... Qh4 {[%clk 0:01:39.3]}
28. Kg2 {[%clk 0:01:41.2]} 28... Rxc4 {[%clk 0:01:30.3]} 29. Be4 {[%clk
0:01:37.9]} 29... Qf4 {[%clk 0:01:24]} 30. Qxc4 {[%clk 0:01:33]} 30... Qh2+
{[%clk 0:01:22.9]} 31. Kf1 {[%clk 0:01:33.5]} 31... Bf6 {[%clk 0:00:54.4]} 32.
Ke2 {[%clk 0:01:27.1]} 32... Bh4 {[%clk 0:00:53.2]} 33. Rf1 {[%clk 0:01:27]}
33... Qe5 {[%clk 0:00:38.1]} 34. Rb3 {[%clk 0:01:20.1]} 34... Bg5 {[%clk
0:00:32.8]} 35. Qxc7 {[%clk 0:01:15.9]} 35... Ra8 {[%clk 0:00:30.8]} 36. Qc3
{[%clk 0:01:09.1]} 36... Qf4 {[%clk 0:00:27.6]} 37. Rb4 {[%clk 0:01:03.6]} 37...
Bf6 {[%clk 0:00:24.8]} 38. Qe3 {[%clk 0:00:58.3]} 38... Qe5 {[%clk 0:00:23.3]}
39. Rc1 {[%clk 0:00:57.6]} 39... Bg5 {[%clk 0:00:21.1]} 40. Qc3 {[%clk
0:00:51.3]} 40... Bxc1 {[%clk 0:00:20.5]} 41. Qxc1 {[%clk 0:00:51.7]} 41... Qf6
{[%clk 0:00:16.3]} 42. Qb2 {[%clk 0:00:51.5]} 42... Qh4 {[%clk 0:00:15.3]} 43.
Rxb6 {[%clk 0:00:51.3]} 43... Rxa4 {[%clk 0:00:12.1]} 44. Rb8+ {[%clk
0:00:51.3]} 44... Kf7 {[%clk 0:00:12.5]} 45. Qb7+ {[%clk 0:00:50.5]} 45... Kf6
{[%clk 0:00:12.4]} 46. Rf8+ {[%clk 0:00:50.5]} 46... Ke5 {[%clk 0:00:12.3]} 47.
Qg7+ {[%clk 0:00:50.5]} 47... Qf6 {[%clk 0:00:08.6]} 48. Qxf6# {[%clk
0:00:49.9]} 1-0

[Event "Late-Titled-Tuesday-Blitz-October-24-2023"]
[Site "Chess.com"]
[Date "2023.10.24"]
[Round "5"]
[White "CraiggoryC"]
[Black "ikhasu"]
[Result "1-0"]
[WhiteElo "2183"]
[BlackElo "2373"]
[TimeControl "180+1"]
[EndTime "14:55:42 PDT"]
[Termination "CraiggoryC won on time"]

1. e4 {[%clk 0:02:30.1]} 1... c5 {[%clk 0:02:58.9]} 2. Nf3 {[%clk 0:02:28.1]}
2... a6 {[%clk 0:02:58.8]} 3. c3 {[%clk 0:02:27]} 3... d6 {[%clk 0:02:53.1]} 4.
d4 {[%clk 0:02:27.1]} 4... cxd4 {[%clk 0:02:52.1]} 5. cxd4 {[%clk 0:02:28]} 5...
Nf6 {[%clk 0:02:51.5]} 6. Nc3 {[%clk 0:02:27.9]} 6... e6 {[%clk 0:02:51.5]} 7.
Bg5 {[%clk 0:02:24]} 7... Be7 {[%clk 0:02:51.5]} 8. Qd2 {[%clk 0:02:22.6]} 8...
O-O {[%clk 0:02:50.8]} 9. Bd3 {[%clk 0:02:12.5]} 9... Nc6 {[%clk 0:02:49.3]} 10.
O-O-O {[%clk 0:02:09.3]} 10... b5 {[%clk 0:02:48.2]} 11. Kb1 {[%clk 0:02:04.8]}
11... b4 {[%clk 0:02:43.8]} 12. Ne2 {[%clk 0:02:02.2]} 12... d5 {[%clk
0:02:37.3]} 13. e5 {[%clk 0:01:41.4]} 13... Ne4 {[%clk 0:02:36.3]} 14. Bxe4
{[%clk 0:01:40.5]} 14... dxe4 {[%clk 0:02:35.5]} 15. Bxe7 {[%clk 0:01:36.1]}
15... Qxe7 {[%clk 0:02:34.4]} 16. Ng5 {[%clk 0:01:27.5]} 16... Bb7 {[%clk
0:02:34.2]} 17. Qf4 {[%clk 0:00:37.1]} 17... f5 {[%clk 0:02:02.8]} 18. exf6
{[%clk 0:00:34.5]} 18... Rxf6 {[%clk 0:02:02.8]} 19. Qxe4 {[%clk 0:00:23.5]}
19... Rg6 {[%clk 0:02:02.9]} 20. h4 {[%clk 0:00:17.7]} 20... b3 {[%clk
0:02:03.1]} 21. Nf4 {[%clk 0:00:14.9]} 21... bxa2+ {[%clk 0:02:02.1]} 22. Ka1
{[%clk 0:00:15.1]} 22... Rh6 {[%clk 0:01:48.1]} 23. Nfxe6 {[%clk 0:00:14.2]}
23... Nb4 {[%clk 0:01:46.4]} 24. d5 {[%clk 0:00:13.6]} 24... Rc8 {[%clk
0:01:38]} 25. d6 {[%clk 0:00:12.5]} 25... Qxd6 {[%clk 0:00:19.2]} 26. Qxb7
{[%clk 0:00:11.5]} 26... Nc2+ {[%clk 0:00:17.4]} 27. Kxa2 {[%clk 0:00:11]} 27...
Nb4+ {[%clk 0:00:16]} 28. Kb1 {[%clk 0:00:11.3]} 28... Rc1+ {[%clk 0:00:06.4]}
29. Rxc1 {[%clk 0:00:10.9]} 29... Qd3+ {[%clk 0:00:06.4]} 30. Ka1 {[%clk
0:00:10.6]} 1-0

[Event "Late-Titled-Tuesday-Blitz-October-24-2023"]
[Site "Chess.com"]
[Date "2023.10.24"]
[Round "5"]
[White "Alex_Sahakyan2006"]
[Black "Truequitos"]
[Result "1-0"]
[WhiteElo "2746"]
[BlackElo "2489"]
[TimeControl "180+1"]
[EndTime "14:55:44 PDT"]
[Termination "Alex_Sahakyan2006 won by resignation"]

1. e4 {[%clk 0:03:00.9]} 1... e6 {[%clk 0:02:59.7]} 2. d4 {[%clk 0:02:59.5]}
2... d5 {[%clk 0:02:59.8]} 3. Bd3 {[%clk 0:02:55.9]} 3... Nf6 {[%clk 0:02:59.3]}
4. e5 {[%clk 0:02:51.8]} 4... Nfd7 {[%clk 0:02:58]} 5. c3 {[%clk 0:02:50.4]}
5... c5 {[%clk 0:02:58.3]} 6. Ne2 {[%clk 0:02:44.4]} 6... Nc6 {[%clk 0:02:58.1]}
7. a3 {[%clk 0:02:39.7]} 7... a5 {[%clk 0:02:55]} 8. Nd2 {[%clk 0:02:05.3]} 8...
Qb6 {[%clk 0:02:54.2]} 9. Nf3 {[%clk 0:02:04.9]} 9... Be7 {[%clk 0:02:52.3]} 10.
O-O {[%clk 0:02:03.7]} 10... O-O {[%clk 0:02:40.1]} 11. h4 {[%clk 0:01:58.9]}
11... f6 {[%clk 0:02:39]} 12. Nf4 {[%clk 0:01:52.7]} 12... Nd8 {[%clk
0:02:36.2]} 13. exf6 {[%clk 0:01:47.9]} 13... Nxf6 {[%clk 0:02:29.3]} 14. Ng5
{[%clk 0:01:31.7]} 14... h6 {[%clk 0:02:13.7]} 15. Ng6 {[%clk 0:01:29.8]} 15...
hxg5 {[%clk 0:02:05.7]} 16. Nxe7+ {[%clk 0:01:25.4]} 16... Kf7 {[%clk
0:02:05.9]} 17. Ng6 {[%clk 0:01:21.4]} 17... Re8 {[%clk 0:01:33]} 18. hxg5
{[%clk 0:01:18.8]} 18... Ne4 {[%clk 0:01:33]} 19. Qh5 {[%clk 0:01:16]} 19... Rg8
{[%clk 0:01:00.3]} 20. Qh7 {[%clk 0:00:39]} 20... Nc6 {[%clk 0:00:50.9]} 21. Bf4
{[%clk 0:00:25.2]} 21... Bd7 {[%clk 0:00:48.9]} 22. Bxe4 {[%clk 0:00:25]} 22...
dxe4 {[%clk 0:00:48.7]} 23. Qh5 {[%clk 0:00:24.3]} 23... Ke8 {[%clk 0:00:42.9]}
24. Bd6 {[%clk 0:00:19.5]} 24... Kd8 {[%clk 0:00:39.2]} 25. dxc5 {[%clk
0:00:18.8]} 25... Qxb2 {[%clk 0:00:37.1]} 26. Rab1 {[%clk 0:00:17.8]} 26... Qxc3
{[%clk 0:00:36.5]} 27. Rxb7 {[%clk 0:00:17.7]} 27... Ra7 {[%clk 0:00:32.2]} 28.
Rxa7 {[%clk 0:00:15.9]} 28... Nxa7 {[%clk 0:00:30.9]} 29. Ne5 {[%clk 0:00:16.8]}
29... Be8 {[%clk 0:00:17.5]} 30. g6 {[%clk 0:00:14.7]} 30... Nc6 {[%clk
0:00:16.9]} 31. Qg5+ {[%clk 0:00:14.1]} 31... Kc8 {[%clk 0:00:14.5]} 32. Nxc6
{[%clk 0:00:13.1]} 32... Bxc6 {[%clk 0:00:15.4]} 33. Qe7 {[%clk 0:00:13.2]}
33... Bd7 {[%clk 0:00:15.4]} 34. Rb1 {[%clk 0:00:12.6]} 1-0

[Event "Late-Titled-Tuesday-Blitz-October-24-2023"]
[Site "Chess.com"]
[Date "2023.10.24"]
[Round "5"]
[White "tteshan"]
[Black "mjelcic"]
[Result "1-0"]
[WhiteElo "2516"]
[BlackElo "2152"]
[TimeControl "180+1"]
[EndTime "14:55:44 PDT"]
[Termination "tteshan won by checkmate"]

1. e4 {[%clk 0:02:57.5]} 1... g6 {[%clk 0:02:46.5]} 2. d4 {[%clk 0:02:56.4]}
2... Bg7 {[%clk 0:02:46.7]} 3. c4 {[%clk 0:02:56.5]} 3... d6 {[%clk 0:02:45.9]}
4. Nc3 {[%clk 0:02:56.5]} 4... Nf6 {[%clk 0:02:44.9]} 5. Be2 {[%clk 0:02:56.9]}
5... O-O {[%clk 0:02:44.2]} 6. Bg5 {[%clk 0:02:57.6]} 6... Qe8 {[%clk
0:02:16.6]} 7. Qd2 {[%clk 0:02:55.6]} 7... e5 {[%clk 0:02:11.4]} 8. d5 {[%clk
0:02:53.2]} 8... a5 {[%clk 0:02:10.8]} 9. h4 {[%clk 0:02:50.8]} 9... h5 {[%clk
0:02:07.7]} 10. f3 {[%clk 0:02:44.9]} 10... Na6 {[%clk 0:02:07.3]} 11. Nh3
{[%clk 0:02:44.6]} 11... Nd7 {[%clk 0:01:42.1]} 12. Nf2 {[%clk 0:02:41.7]} 12...
f6 {[%clk 0:01:42.2]} 13. Be3 {[%clk 0:02:40]} 13... f5 {[%clk 0:01:41.3]} 14.
Bg5 {[%clk 0:02:33.3]} 14... f4 {[%clk 0:01:39.9]} 15. O-O-O {[%clk 0:02:30]}
15... Ndc5 {[%clk 0:01:32.3]} 16. Kb1 {[%clk 0:02:28.8]} 16... Bf6 {[%clk
0:01:26.7]} 17. Rdg1 {[%clk 0:02:25]} 17... Bxg5 {[%clk 0:01:26]} 18. hxg5
{[%clk 0:02:25.9]} 18... Nb4 {[%clk 0:01:19.7]} 19. g3 {[%clk 0:02:12]} 19...
fxg3 {[%clk 0:01:16.8]} 20. Rxg3 {[%clk 0:02:12.9]} 20... Kg7 {[%clk 0:01:12.7]}
21. a3 {[%clk 0:01:50.3]} 21... Nba6 {[%clk 0:01:07.8]} 22. Bd1 {[%clk
0:01:50.2]} 22... Bd7 {[%clk 0:01:05.7]} 23. Bc2 {[%clk 0:01:49]} 23... Qe7
{[%clk 0:01:02.7]} 24. Ne2 {[%clk 0:01:43.8]} 24... Rf7 {[%clk 0:00:59]} 25. f4
{[%clk 0:01:38.5]} 25... exf4 {[%clk 0:00:52.6]} 26. Nxf4 {[%clk 0:01:38.7]}
26... Raf8 {[%clk 0:00:52.2]} 27. N2h3 {[%clk 0:01:13.3]} 27... Bxh3 {[%clk
0:00:46.3]} 28. Nxh3 {[%clk 0:01:13.5]} 28... Qe5 {[%clk 0:00:46]} 29. Re3
{[%clk 0:01:06.9]} 29... a4 {[%clk 0:00:30.7]} 30. Rhe1 {[%clk 0:01:02.5]} 30...
Rf3 {[%clk 0:00:26.6]} 31. Ng1 {[%clk 0:01:00.8]} 31... Rf2 {[%clk 0:00:26.3]}
32. Qd1 {[%clk 0:00:58.3]} 32... Qxg5 {[%clk 0:00:24.7]} 33. Nh3 {[%clk
0:00:55.5]} 33... Qe5 {[%clk 0:00:19.7]} 34. Nxf2 {[%clk 0:00:55.3]} 34... Rxf2
{[%clk 0:00:20.6]} 35. Rf3 {[%clk 0:00:53.2]} 35... Rh2 {[%clk 0:00:18.7]} 36.
Re2 {[%clk 0:00:51.8]} 36... Rh4 {[%clk 0:00:15.6]} 37. Qf1 {[%clk 0:00:49.7]}
37... Nb3 {[%clk 0:00:13.1]} 38. Rf8 {[%clk 0:00:37.5]} 38... Kh6 {[%clk
0:00:08.1]} 39. Bxb3 {[%clk 0:00:31.5]} 39... axb3 {[%clk 0:00:09]} 40. Qc1+
{[%clk 0:00:31.4]} 40... Kg7 {[%clk 0:00:06.7]} 41. Ref2 {[%clk 0:00:27.2]}
41... Rh2 {[%clk 0:00:06.6]} 42. R2f7# {[%clk 0:00:26.1]} 1-0

[Event "Late-Titled-Tuesday-Blitz-October-24-2023"]
[Site "Chess.com"]
[Date "2023.10.24"]
[Round "5"]
[White "Bauman_Guy"]
[Black "Duhless"]
[Result "0-1"]
[WhiteElo "2916"]
[BlackElo "3120"]
[TimeControl "180+1"]
[EndTime "14:55:46 PDT"]
[Termination "Duhless won by resignation"]

1. e4 {[%clk 0:03:00.9]} 1... c5 {[%clk 0:02:59.3]} 2. Nf3 {[%clk 0:03:00.8]}
2... e6 {[%clk 0:02:56.4]} 3. d4 {[%clk 0:03:00.6]} 3... cxd4 {[%clk 0:02:57.3]}
4. Nxd4 {[%clk 0:03:01.1]} 4... Nf6 {[%clk 0:02:56.8]} 5. Nc3 {[%clk 0:03:00.2]}
5... Nc6 {[%clk 0:02:55.8]} 6. Ndb5 {[%clk 0:02:59.8]} 6... Bc5 {[%clk
0:02:49.5]} 7. Nd6+ {[%clk 0:02:59.2]} 7... Ke7 {[%clk 0:02:49.1]} 8. Bf4 {[%clk
0:02:58.6]} 8... e5 {[%clk 0:02:48.7]} 9. Nf5+ {[%clk 0:02:58.8]} 9... Kf8
{[%clk 0:02:48]} 10. Bg5 {[%clk 0:02:59.7]} 10... Bb4 {[%clk 0:02:41.8]} 11. Bc4
{[%clk 0:02:58.4]} 11... d5 {[%clk 0:02:41.5]} 12. Bxf6 {[%clk 0:02:56.3]} 12...
Qxf6 {[%clk 0:02:40.7]} 13. Qxd5 {[%clk 0:02:14.7]} 13... Bxf5 {[%clk
0:02:38.7]} 14. exf5 {[%clk 0:02:12.8]} 14... Rd8 {[%clk 0:02:39.2]} 15. Qb5
{[%clk 0:02:04.5]} 15... g6 {[%clk 0:02:33.4]} 16. O-O {[%clk 0:01:57.4]} 16...
Bxc3 {[%clk 0:02:29.5]} 17. bxc3 {[%clk 0:01:54.9]} 17... gxf5 {[%clk
0:02:19.7]} 18. Rad1 {[%clk 0:01:43.4]} 18... Kg7 {[%clk 0:02:18.7]} 19. Qxb7
{[%clk 0:01:28.4]} 19... e4 {[%clk 0:02:15.9]} 20. Bxf7 {[%clk 0:00:55.5]} 20...
Rb8 {[%clk 0:02:15.7]} 21. Qd7 {[%clk 0:00:38.2]} 21... Ne5 {[%clk 0:02:10.3]}
22. Qxa7 {[%clk 0:00:30.2]} 22... Qxf7 {[%clk 0:02:02.5]} 23. Qe3 {[%clk
0:00:30.1]} 23... Rhe8 {[%clk 0:01:57.9]} 24. h3 {[%clk 0:00:28.4]} 24... Kh8
{[%clk 0:01:53.5]} 25. Rd6 {[%clk 0:00:26.9]} 25... Qg7 {[%clk 0:01:51.1]} 26.
Rd5 {[%clk 0:00:16.5]} 26... Rbc8 {[%clk 0:01:41.5]} 27. Kh1 {[%clk 0:00:15.4]}
27... Qf6 {[%clk 0:01:35.4]} 28. Rfd1 {[%clk 0:00:14.5]} 28... Rc6 {[%clk
0:01:18.6]} 29. Qd4 {[%clk 0:00:12.7]} 29... Rce6 {[%clk 0:01:16.8]} 30. a4
{[%clk 0:00:12.6]} 30... Qg6 {[%clk 0:00:57.7]} 31. a5 {[%clk 0:00:11.5]} 31...
f4 {[%clk 0:00:58.3]} 32. a6 {[%clk 0:00:10.1]} 32... f3 {[%clk 0:00:57.9]} 33.
g3 {[%clk 0:00:10.2]} 33... Qh5 {[%clk 0:00:46.4]} 34. h4 {[%clk 0:00:10.6]}
34... Qf5 {[%clk 0:00:43.9]} 35. Kh2 {[%clk 0:00:09]} 35... Rxa6 {[%clk
0:00:43.4]} 36. Re1 {[%clk 0:00:06.8]} 36... h5 {[%clk 0:00:29.7]} 37. Rxe4
{[%clk 0:00:05.6]} 37... Qxe4 {[%clk 0:00:27.6]} 38. Qxe4 {[%clk 0:00:04.5]}
38... Ng4+ {[%clk 0:00:28.2]} 39. Qxg4 {[%clk 0:00:05.2]} 39... hxg4 {[%clk
0:00:29.1]} 40. Rh5+ {[%clk 0:00:05.8]} 40... Kg7 {[%clk 0:00:29.1]} 41. Rg5+
{[%clk 0:00:06.7]} 41... Rg6 {[%clk 0:00:29.3]} 0-1

[Event "Late-Titled-Tuesday-Blitz-October-24-2023"]
[Site "Chess.com"]
[Date "2023.10.24"]
[Round "5"]
[White "katharinareinecke"]
[Black "Darko-Dimitrijevic"]
[Result "0-1"]
[WhiteElo "1860"]
[BlackElo "2118"]
[TimeControl "180+1"]
[EndTime "14:55:46 PDT"]
[Termination "Darko-Dimitrijevic won by resignation"]

1. d4 {[%clk 0:02:49.9]} 1... f5 {[%clk 0:02:52.1]} 2. c4 {[%clk 0:02:49.4]}
2... Nf6 {[%clk 0:02:50.3]} 3. Nc3 {[%clk 0:02:48.6]} 3... e6 {[%clk 0:02:47.8]}
4. g3 {[%clk 0:02:47.6]} 4... Bb4 {[%clk 0:02:46.9]} 5. Bg2 {[%clk 0:02:46.5]}
5... O-O {[%clk 0:02:46]} 6. Nf3 {[%clk 0:02:45.5]} 6... d5 {[%clk 0:02:44.2]}
7. O-O {[%clk 0:02:33.3]} 7... Ne4 {[%clk 0:02:42]} 8. Nxe4 {[%clk 0:02:26.9]}
8... fxe4 {[%clk 0:02:41.2]} 9. Ne5 {[%clk 0:02:25.4]} 9... Nd7 {[%clk 0:02:38]}
10. a3 {[%clk 0:02:11]} 10... Bd6 {[%clk 0:02:35]} 11. Nxd7 {[%clk 0:02:08.6]}
11... Bxd7 {[%clk 0:02:31.2]} 12. c5 {[%clk 0:02:08.2]} 12... Be7 {[%clk
0:02:30.3]} 13. b4 {[%clk 0:02:06]} 13... Bb5 {[%clk 0:02:28.3]} 14. Qc2 {[%clk
0:01:54.4]} 14... Bf6 {[%clk 0:02:19.8]} 15. Be3 {[%clk 0:01:43.6]} 15... Qd7
{[%clk 0:02:17.6]} 16. Rac1 {[%clk 0:01:39.8]} 16... a5 {[%clk 0:02:05.1]} 17.
f3 {[%clk 0:01:23.3]} 17... axb4 {[%clk 0:01:59.1]} 18. fxe4 {[%clk 0:01:14.2]}
18... Rxa3 {[%clk 0:01:54.7]} 19. Bf2 {[%clk 0:01:05.6]} 19... dxe4 {[%clk
0:01:47.6]} 20. Bxe4 {[%clk 0:01:02.5]} 20... g6 {[%clk 0:01:31.6]} 21. Rfd1
{[%clk 0:00:55.2]} 21... c6 {[%clk 0:01:30.2]} 22. e3 {[%clk 0:00:47.8]} 22...
Rfa8 {[%clk 0:01:16.3]} 23. Rb1 {[%clk 0:00:43.8]} 23... Ba4 {[%clk 0:01:07.9]}
24. Qc4 {[%clk 0:00:32]} 24... Bxd1 {[%clk 0:01:06.8]} 25. Rxd1 {[%clk
0:00:31.6]} 25... R8a4 {[%clk 0:00:58.9]} 26. Rb1 {[%clk 0:00:27.6]} 26... Rc3
{[%clk 0:00:56.5]} 27. Qe2 {[%clk 0:00:20.5]} 27... b3 {[%clk 0:00:52.6]} 28.
Qg4 {[%clk 0:00:19.7]} 28... Kf7 {[%clk 0:00:48.6]} 29. Bxg6+ {[%clk 0:00:18.6]}
29... hxg6 {[%clk 0:00:48]} 30. Qh3 {[%clk 0:00:18.9]} 30... Kg7 {[%clk
0:00:46.3]} 31. g4 {[%clk 0:00:19]} 31... Qd5 {[%clk 0:00:41.7]} 32. Bh4 {[%clk
0:00:18.5]} 32... g5 {[%clk 0:00:37.3]} 33. Bg3 {[%clk 0:00:17.4]} 33... Ra2
{[%clk 0:00:36.1]} 34. Rf1 {[%clk 0:00:15.2]} 34... b2 {[%clk 0:00:26.8]} 35.
Be5 {[%clk 0:00:14.3]} 35... Bxe5 {[%clk 0:00:22.5]} 36. dxe5 {[%clk 0:00:14.6]}
36... Rc1 {[%clk 0:00:15.1]} 37. Qf3 {[%clk 0:00:13.4]} 37... Qxf3 {[%clk
0:00:11.4]} 0-1

[Event "Late-Titled-Tuesday-Blitz-October-24-2023"]
[Site "Chess.com"]
[Date "2023.10.24"]
[Round "5"]
[White "Iball95"]
[Black "AndresDelgado77"]
[Result "1-0"]
[WhiteElo "2807"]
[BlackElo "2351"]
[TimeControl "180+1"]
[EndTime "14:55:49 PDT"]
[Termination "Iball95 won on time"]

1. e4 {[%clk 0:02:59.8]} 1... e6 {[%clk 0:02:53.5]} 2. d4 {[%clk 0:02:59.7]}
2... d5 {[%clk 0:02:48.9]} 3. Nc3 {[%clk 0:02:59.9]} 3... Nf6 {[%clk 0:02:44]}
4. Bd3 {[%clk 0:03:00.4]} 4... c5 {[%clk 0:02:39.9]} 5. Nf3 {[%clk 0:03:00.6]}
5... c4 {[%clk 0:02:31.8]} 6. e5 {[%clk 0:03:00]} 6... cxd3 {[%clk 0:02:30.2]}
7. exf6 {[%clk 0:02:59.9]} 7... dxc2 {[%clk 0:02:29.4]} 8. Qxc2 {[%clk
0:03:00.8]} 8... gxf6 {[%clk 0:02:15]} 9. O-O {[%clk 0:03:00.7]} 9... Nc6 {[%clk
0:02:13.4]} 10. Bf4 {[%clk 0:03:00.7]} 10... Bd6 {[%clk 0:02:12.4]} 11. Qd2
{[%clk 0:02:55.6]} 11... Bxf4 {[%clk 0:01:59.9]} 12. Qxf4 {[%clk 0:02:56.5]}
12... O-O {[%clk 0:01:58.9]} 13. Rfe1 {[%clk 0:02:25.8]} 13... a6 {[%clk
0:01:47.1]} 14. Re3 {[%clk 0:02:18.3]} 14... Kg7 {[%clk 0:01:35.1]} 15. Rae1
{[%clk 0:02:00.4]} 15... Ne7 {[%clk 0:01:24.2]} 16. Nh4 {[%clk 0:01:49.7]} 16...
Ng6 {[%clk 0:01:19.2]} 17. Rg3 {[%clk 0:01:50.1]} 17... f5 {[%clk 0:01:07.9]}
18. Nf3 {[%clk 0:01:48.4]} 18... Kh8 {[%clk 0:00:44.6]} 19. Qh6 {[%clk
0:01:47.5]} 19... Qf6 {[%clk 0:00:39]} 20. h4 {[%clk 0:00:57]} 20... Qg7 {[%clk
0:00:31.3]} 21. Qd2 {[%clk 0:00:56.9]} 21... f4 {[%clk 0:00:27.4]} 22. Rg5
{[%clk 0:00:46.7]} 22... h6 {[%clk 0:00:23.5]} 23. Rh5 {[%clk 0:00:46.4]} 23...
f6 {[%clk 0:00:18.8]} 24. Na4 {[%clk 0:00:39.9]} 24... Bd7 {[%clk 0:00:14.5]}
25. Nc5 {[%clk 0:00:40.2]} 25... Rae8 {[%clk 0:00:12.5]} 26. Nxd7 {[%clk
0:00:36.3]} 26... Qxd7 {[%clk 0:00:12.7]} 27. Rxh6+ {[%clk 0:00:37.2]} 27... Kg7
{[%clk 0:00:13.1]} 28. Rxg6+ {[%clk 0:00:33.7]} 28... Kxg6 {[%clk 0:00:12.9]}
29. Qxf4 {[%clk 0:00:34.6]} 29... Kh7 {[%clk 0:00:09.8]} 30. Re3 {[%clk
0:00:34.3]} 30... Qg7 {[%clk 0:00:09.3]} 31. Nh2 {[%clk 0:00:32.8]} 31... Qh6
{[%clk 0:00:07.7]} 32. Qc7+ {[%clk 0:00:32.8]} 32... Kh8 {[%clk 0:00:06.7]} 33.
Ng4 {[%clk 0:00:30.8]} 33... Qg7 {[%clk 0:00:06]} 34. Qf4 {[%clk 0:00:30.3]}
34... Rg8 {[%clk 0:00:05.6]} 35. Rg3 {[%clk 0:00:30.9]} 35... Ref8 {[%clk
0:00:03.8]} 36. Nh6 {[%clk 0:00:29.6]} 1-0